[Event "Titled Tuesday Blitz August 09 Late 2022"]
[White "Livaic, Leon"]
[Black "Bilych, Olexiy"]
[WhiteFideId "14531534"]
[BlackFideId "14156504"]
[WhiteElo "2540"]
[BlackElo "2157"]
[Result "1/2-1/2"]
[Round "09"]
[TimeControl "180+1"]
[Date "2022.08.09"]
[WhiteClock "0:00:08"]
[BlackClock "0:00:11"]

1. e4 {[%clk 0:03:00]}  e5 {[%clk 0:02:58]} 2. f4 {[%clk 0:03:01]}  exf4 {[%clk 0:02:56]} 3. Nf3 {[%clk 0:03:01]}  g5 {[%clk 0:02:56]} 4. d4 {[%clk 0:02:59]}  g4 {[%clk 0:02:49]} 5. Bxf4 {[%clk 0:02:48]}  gxf3 {[%clk 0:02:43]} 6. Qxf3 {[%clk 0:02:49]}  Nc6 {[%clk 0:02:34]} 7. c3 {[%clk 0:02:32]}  d6 {[%clk 0:02:29]} 8. Bc4 {[%clk 0:02:31]}  Qh4+ {[%clk 0:02:24]} 9. Bg3 {[%clk 0:02:25]}  Qf6 {[%clk 0:02:19]} 10. Qe2 {[%clk 0:02:18]}  Qg6 {[%clk 0:01:59]} 11. O-O {[%clk 0:02:16]}  Nh6 {[%clk 0:01:39]} 12. Bb5 {[%clk 0:01:50]}  Bd7 {[%clk 0:01:33]} 13. d5 {[%clk 0:01:46]}  Ne5 {[%clk 0:01:21]} 14. Bxe5 {[%clk 0:01:46]}  dxe5 {[%clk 0:01:22]} 15. Bxd7+ {[%clk 0:01:46]}  Kxd7 {[%clk 0:01:23]} 16. Qb5+ {[%clk 0:01:46]}  Kd8 {[%clk 0:01:23]} 17. Kh1 {[%clk 0:01:37]}  Bd6 {[%clk 0:01:04]} 18. Nd2 {[%clk 0:01:30]}  Rg8 {[%clk 0:00:58]} 19. g3 {[%clk 0:01:29]}  Ng4 {[%clk 0:00:54]} 20. Qe2 {[%clk 0:01:27]}  Ke7 {[%clk 0:00:49]} 21. Nf3 {[%clk 0:01:26]}  Nf6 {[%clk 0:00:40]} 22. Nh4 {[%clk 0:01:26]}  Qxe4+ {[%clk 0:00:39]} 23. Qxe4 {[%clk 0:01:16]}  Nxe4 {[%clk 0:00:40]} 24. Rae1 {[%clk 0:01:15]}  Nc5 {[%clk 0:00:31]} 25. Nf5+ {[%clk 0:01:16]}  Ke8 {[%clk 0:00:29]} 26. b4 {[%clk 0:01:10]}  Nd7 {[%clk 0:00:29]} 27. a3 {[%clk 0:01:03]}  f6 {[%clk 0:00:27]} 28. c4 {[%clk 0:01:02]}  b6 {[%clk 0:00:27]} 29. Nd4 {[%clk 0:01:00]}  a5 {[%clk 0:00:24]} 30. Nb5 {[%clk 0:01:00]}  axb4 {[%clk 0:00:23]} 31. axb4 {[%clk 0:01:01]}  Ke7 {[%clk 0:00:23]} 32. Nd4 {[%clk 0:00:43]}  Kf7 {[%clk 0:00:16]} 33. Nc6 {[%clk 0:00:41]}  Bxb4 {[%clk 0:00:15]} 34. Nxb4 {[%clk 0:00:41]}  Ra4 {[%clk 0:00:14]} 35. Nc6 {[%clk 0:00:32]}  Re8 {[%clk 0:00:14]} 36. Re4 {[%clk 0:00:28]}  h5 {[%clk 0:00:12]} 37. Rh4 {[%clk 0:00:26]}  Kg6 {[%clk 0:00:12]} 38. g4 {[%clk 0:00:24]}  Rh8 {[%clk 0:00:12]} 39. gxh5+ {[%clk 0:00:24]}  Rxh5 {[%clk 0:00:09]} 40. Ne7+ {[%clk 0:00:24]}  Kh6 {[%clk 0:00:10]} 41. Ng8+ {[%clk 0:00:21]}  Kg6 {[%clk 0:00:10]} 42. Ne7+ {[%clk 0:00:09]}  Kg5 {[%clk 0:00:07]} 43. Re4 {[%clk 0:00:05]}  Rh4 {[%clk 0:00:05]} 44. Rg1+ {[%clk 0:00:04]}  Kh5 {[%clk 0:00:04]} 45. Rxh4+ {[%clk 0:00:04]}  Kxh4 {[%clk 0:00:05]} 46. Nf5+ {[%clk 0:00:04]}  Kh5 {[%clk 0:00:05]} 47. Rg7 {[%clk 0:00:04]}  Nc5 {[%clk 0:00:05]} 48. Ng3+ {[%clk 0:00:03]}  Kh4 {[%clk 0:00:06]} 49. Nf5+ {[%clk 0:00:04]}  Kh5 {[%clk 0:00:06]} 50. Rxc7 {[%clk 0:00:04]}  Rxc4 {[%clk 0:00:06]} 51. d6 {[%clk 0:00:04]}  Rc1+ {[%clk 0:00:06]} 52. Kg2 {[%clk 0:00:04]}  Rd1 {[%clk 0:00:07]} 53. Rg7 {[%clk 0:00:02]}  e4 {[%clk 0:00:06]} 54. Kf2 {[%clk 0:00:02]}  Rd2+ {[%clk 0:00:04]} 55. Ke3 {[%clk 0:00:03]}  Rd3+ {[%clk 0:00:05]} 56. Ke2 {[%clk 0:00:03]}  b5 {[%clk 0:00:04]} 57. Ng3+ {[%clk 0:00:04]}  Kh6 {[%clk 0:00:04]} 58. Nf5+ {[%clk 0:00:04]}  Kh5 {[%clk 0:00:04]} 59. h4 {[%clk 0:00:02]}  Rd5 {[%clk 0:00:04]} 60. Ng3+ {[%clk 0:00:02]}  Kxh4 {[%clk 0:00:04]} 61. Rc7 {[%clk 0:00:02]}  b4 {[%clk 0:00:04]} 62. Nxe4 {[%clk 0:00:02]}  Nxe4 {[%clk 0:00:04]} 63. d7 {[%clk 0:00:03]}  f5 {[%clk 0:00:04]} 64. Rc4 {[%clk 0:00:04]}  Rxd7 {[%clk 0:00:04]} 65. Rxb4 {[%clk 0:00:05]}  Kg4 {[%clk 0:00:04]} 66. Ke3 {[%clk 0:00:05]}  Re7 {[%clk 0:00:05]} 67. Rb7 {[%clk 0:00:06]}  Ng5+ {[%clk 0:00:05]} 68. Rxe7 {[%clk 0:00:07]}  f4+ {[%clk 0:00:04]} 69. Kf2 {[%clk 0:00:07]}  Nh3+ {[%clk 0:00:05]} 70. Kg2 {[%clk 0:00:07]}  f3+ {[%clk 0:00:05]} 71. Kh2 {[%clk 0:00:07]}  Nf4 {[%clk 0:00:06]} 72. Rg7+ {[%clk 0:00:07]}  Kh4 {[%clk 0:00:06]} 73. Kg1 {[%clk 0:00:06]}  Nh3+ {[%clk 0:00:06]} 74. Kf1 {[%clk 0:00:06]}  f2 {[%clk 0:00:04]} 75. Kg2 {[%clk 0:00:04]}  Nf4+ {[%clk 0:00:03]} 76. Kxf2 {[%clk 0:00:04]}  Nh5 {[%clk 0:00:04]} 77. Rg1 {[%clk 0:00:04]}  Nf6 {[%clk 0:00:03]} 78. Kf3 {[%clk 0:00:04]}  Nh5 {[%clk 0:00:04]} 79. Rg4+ {[%clk 0:00:04]}  Kh3 {[%clk 0:00:04]} 80. Rg6 {[%clk 0:00:05]}  Kh4 {[%clk 0:00:05]} 81. Rg4+ {[%clk 0:00:05]}  Kh3 {[%clk 0:00:05]} 82. Rb4 {[%clk 0:00:06]}  Nf6 {[%clk 0:00:04]} 83. Rd4 {[%clk 0:00:03]}  Nh5 {[%clk 0:00:04]} 84. Rd1 {[%clk 0:00:01]}  Kh4 {[%clk 0:00:05]} 85. Rg1 {[%clk 0:00:01]}  Nf6 {[%clk 0:00:05]} 86. Rh1+ {[%clk 0:00:02]}  Kg5 {[%clk 0:00:05]} 87. Kg3 {[%clk 0:00:02]}  Nh5+ {[%clk 0:00:05]} 88. Kf3 {[%clk 0:00:02]}  Nf6 {[%clk 0:00:06]} 89. Rg1+ {[%clk 0:00:02]}  Kf5 {[%clk 0:00:06]} 90. Rb1 {[%clk 0:00:03]}  Kg5 {[%clk 0:00:06]} 91. Rb5+ {[%clk 0:00:04]}  Kh4 {[%clk 0:00:07]} 92. Kf4 {[%clk 0:00:05]}  Nh5+ {[%clk 0:00:07]} 93. Kf5 {[%clk 0:00:05]}  Ng3+ {[%clk 0:00:08]} 94. Ke5 {[%clk 0:00:05]}  Nh5 {[%clk 0:00:08]} 95. Rb4+ {[%clk 0:00:06]}  Kg5 {[%clk 0:00:09]} 96. Ke4 {[%clk 0:00:06]}  Nf6+ {[%clk 0:00:09]} 97. Kf3 {[%clk 0:00:06]}  Kf5 {[%clk 0:00:09]} 98. Rb5+ {[%clk 0:00:06]}  Ke6 {[%clk 0:00:09]} 99. Kf4 {[%clk 0:00:07]}  Nd5+ {[%clk 0:00:10]} 100. Ke4 {[%clk 0:00:07]}  Nc3+ {[%clk 0:00:10]} 101. Kd4 {[%clk 0:00:08]}  Nxb5+ {[%clk 0:00:11]} 1/2-1/2


[Site "https://www.chess.com"]

[Event "Titled Tuesday Blitz August 09 Late 2022"]
[White "Matinian, Nikita"]
[Black "Shimanov, Aleksandr"]
[WhiteFideId "24129100"]
[BlackFideId "4198603"]
[WhiteElo "2422"]
[BlackElo "2605"]
[Result "0-1"]
[Round "09"]
[TimeControl "180+1"]
[Date "2022.08.09"]
[WhiteClock "0:00:03"]
[BlackClock "0:00:07"]

1. e4 {[%clk 0:03:00]}  d5 {[%clk 0:03:00]} 2. exd5 {[%clk 0:02:59]}  Qxd5 {[%clk 0:03:00]} 3. Nc3 {[%clk 0:02:58]}  Qe5+ {[%clk 0:03:01]} 4. Qe2 {[%clk 0:02:56]}  Qxe2+ {[%clk 0:02:59]} 5. Bxe2 {[%clk 0:02:57]}  Nf6 {[%clk 0:02:59]} 6. d4 {[%clk 0:02:56]}  c6 {[%clk 0:02:55]} 7. Nf3 {[%clk 0:02:41]}  Bf5 {[%clk 0:02:54]} 8. Bf4 {[%clk 0:02:30]}  e6 {[%clk 0:02:53]} 9. O-O-O {[%clk 0:02:29]}  Bb4 {[%clk 0:02:47]} 10. Ne5 {[%clk 0:02:25]}  h5 {[%clk 0:02:40]} 11. h3 {[%clk 0:02:19]}  h4 {[%clk 0:02:37]} 12. g4 {[%clk 0:02:04]}  hxg3 {[%clk 0:02:35]} 13. fxg3 {[%clk 0:02:05]}  Nbd7 {[%clk 0:02:30]} 14. g4 {[%clk 0:02:04]}  Bh7 {[%clk 0:02:30]} 15. Nxd7 {[%clk 0:01:56]}  Nxd7 {[%clk 0:02:23]} 16. h4 {[%clk 0:01:34]}  O-O-O {[%clk 0:01:35]} 17. h5 {[%clk 0:01:34]}  f6 {[%clk 0:01:32]} 18. Bc4 {[%clk 0:01:31]}  Rhe8 {[%clk 0:01:30]} 19. Rde1 {[%clk 0:01:26]}  Bg8 {[%clk 0:01:14]} 20. a3 {[%clk 0:01:21]}  Bf8 {[%clk 0:01:00]} 21. Bd3 {[%clk 0:01:10]}  Bf7 {[%clk 0:00:54]} 22. Bg6 {[%clk 0:01:06]}  Bxg6 {[%clk 0:00:52]} 23. hxg6 {[%clk 0:01:07]}  e5 {[%clk 0:00:52]} 24. dxe5 {[%clk 0:01:07]}  fxe5 {[%clk 0:00:50]} 25. Bg5 {[%clk 0:01:00]}  Be7 {[%clk 0:00:50]} 26. Ne4 {[%clk 0:00:57]}  Bxg5+ {[%clk 0:00:49]} 27. Nxg5 {[%clk 0:00:57]}  Re7 {[%clk 0:00:28]} 28. Nf7 {[%clk 0:00:56]}  Rg8 {[%clk 0:00:28]} 29. g5 {[%clk 0:00:53]}  Kc7 {[%clk 0:00:28]} 30. Rh7 {[%clk 0:00:48]}  Nf8 {[%clk 0:00:26]} 31. Rxe5 {[%clk 0:00:48]}  Rxe5 {[%clk 0:00:26]} 32. Nxe5 {[%clk 0:00:48]}  Kd6 {[%clk 0:00:26]} 33. Nf7+ {[%clk 0:00:45]}  Ke7 {[%clk 0:00:24]} 34. Ne5 {[%clk 0:00:34]}  Ke6 {[%clk 0:00:20]} 35. Nd3 {[%clk 0:00:06]}  Nxh7 {[%clk 0:00:19]} 36. gxh7 {[%clk 0:00:07]}  Rh8 {[%clk 0:00:20]} 37. g6 {[%clk 0:00:05]}  Kf5 {[%clk 0:00:20]} 38. Nc5 {[%clk 0:00:04]}  Kxg6 {[%clk 0:00:20]} 39. Nxb7 {[%clk 0:00:04]}  Rxh7 {[%clk 0:00:20]} 40. Na5 {[%clk 0:00:05]}  Kf5 {[%clk 0:00:17]} 41. Nxc6 {[%clk 0:00:05]}  g5 {[%clk 0:00:17]} 42. Kd2 {[%clk 0:00:05]}  Rh2+ {[%clk 0:00:16]} 43. Ke3 {[%clk 0:00:04]}  g4 {[%clk 0:00:14]} 44. Nd4+ {[%clk 0:00:05]}  Kg5 {[%clk 0:00:14]} 45. b4 {[%clk 0:00:05]}  Rh3+ {[%clk 0:00:08]} 46. Ke4 {[%clk 0:00:04]}  Rxa3 {[%clk 0:00:08]} 47. c4 {[%clk 0:00:05]}  g3 {[%clk 0:00:08]} 48. c5 {[%clk 0:00:03]}  g2 {[%clk 0:00:08]} 49. Ne2 {[%clk 0:00:03]}  Ra2 {[%clk 0:00:07]} 50. Ng1 {[%clk 0:00:03]}  Ra1 {[%clk 0:00:07]} 51. Nf3+ {[%clk 0:00:03]}  Kg4 {[%clk 0:00:07]} 52. c6 {[%clk 0:00:03]}  Rc1 {[%clk 0:00:07]} 53. b5 {[%clk 0:00:02]}  a6 {[%clk 0:00:07]} 54. bxa6 {[%clk 0:00:02]}  Rxc6 {[%clk 0:00:06]} 55. Ne5+ {[%clk 0:00:03]}  Kg3 {[%clk 0:00:06]} 56. Nxc6 {[%clk 0:00:04]}  g1=Q {[%clk 0:00:07]} 57. a7 {[%clk 0:00:04]}  Qg2+ {[%clk 0:00:07]} 58. Ke5 {[%clk 0:00:03]}  Qxc6 {[%clk 0:00:07]} 0-1


[Site "https://www.chess.com"]

[Event "Titled Tuesday Blitz August 09 Late 2022"]
[White "McBryde, Lamel"]
[Black "Gubajdullin, Alexei"]
[WhiteFideId "2058596"]
[BlackFideId "4141202"]
[WhiteElo "2136"]
[BlackElo "2214"]
[Result "1/2-1/2"]
[Round "09"]
[TimeControl "180+1"]
[Date "2022.08.09"]
[WhiteClock "0:00:19"]
[BlackClock "0:00:51"]

1. Nf3 {[%clk 0:02:59]}  Nf6 {[%clk 0:02:58]} 2. b3 {[%clk 0:03:00]}  g6 {[%clk 0:02:55]} 3. Bb2 {[%clk 0:03:00]}  Bg7 {[%clk 0:02:55]} 4. c4 {[%clk 0:03:01]}  O-O {[%clk 0:02:55]} 5. d3 {[%clk 0:03:02]}  Nc6 {[%clk 0:02:54]} 6. Nbd2 {[%clk 0:03:01]}  d6 {[%clk 0:02:52]} 7. e3 {[%clk 0:03:01]}  a5 {[%clk 0:02:50]} 8. a3 {[%clk 0:03:01]}  e5 {[%clk 0:02:44]} 9. Be2 {[%clk 0:03:01]}  Ng4 {[%clk 0:02:45]} 10. Qc2 {[%clk 0:03:01]}  f5 {[%clk 0:02:42]} 11. h3 {[%clk 0:03:01]}  Nh6 {[%clk 0:02:41]} 12. O-O-O {[%clk 0:02:57]}  f4 {[%clk 0:02:29]} 13. d4 {[%clk 0:02:49]}  fxe3 {[%clk 0:02:26]} 14. fxe3 {[%clk 0:02:49]}  Nf5 {[%clk 0:02:25]} 15. Nf1 {[%clk 0:02:44]}  exd4 {[%clk 0:02:14]} 16. exd4 {[%clk 0:02:44]}  Re8 {[%clk 0:02:05]} 17. d5 {[%clk 0:02:30]}  Bxb2+ {[%clk 0:01:49]} 18. Qxb2 {[%clk 0:02:21]}  Ne5 {[%clk 0:01:48]} 19. g4 {[%clk 0:01:45]}  Nxf3 {[%clk 0:01:47]} 20. Bxf3 {[%clk 0:01:45]}  Ne3 {[%clk 0:01:46]} 21. Re1 {[%clk 0:01:40]}  Nxf1 {[%clk 0:01:28]} 22. Rhxf1 {[%clk 0:01:39]}  Rxe1+ {[%clk 0:01:24]} 23. Rxe1 {[%clk 0:01:40]}  Qg5+ {[%clk 0:01:20]} 24. Kb1 {[%clk 0:01:40]}  Bd7 {[%clk 0:01:19]} 25. Qd4 {[%clk 0:01:24]}  Rf8 {[%clk 0:01:17]} 26. Bd1 {[%clk 0:01:13]}  Qf6 {[%clk 0:01:15]} 27. Qxf6 {[%clk 0:01:07]}  Rxf6 {[%clk 0:01:14]} 28. Re7 {[%clk 0:01:07]}  Rf7 {[%clk 0:01:14]} 29. Rxf7 {[%clk 0:01:07]}  Kxf7 {[%clk 0:01:14]} 30. Kc2 {[%clk 0:00:55]}  Kf6 {[%clk 0:01:12]} 31. Kd3 {[%clk 0:00:54]}  Ke5 {[%clk 0:01:12]} 32. Ke3 {[%clk 0:00:54]}  g5 {[%clk 0:01:11]} 33. Bc2 {[%clk 0:00:51]}  h6 {[%clk 0:01:11]} 34. b4 {[%clk 0:00:51]}  b6 {[%clk 0:01:04]} 35. Be4 {[%clk 0:00:45]}  Ba4 {[%clk 0:01:02]} 36. Bd3 {[%clk 0:00:33]}  Bb3 {[%clk 0:01:01]} 37. Be2 {[%clk 0:00:31]}  Bc2 {[%clk 0:01:00]} 38. Bf3 {[%clk 0:00:27]}  Bb3 {[%clk 0:00:58]} 39. Be2 {[%clk 0:00:27]}  Bc2 {[%clk 0:00:57]} 40. Bf3 {[%clk 0:00:27]}  Bg6 {[%clk 0:00:55]} 41. Bg2 {[%clk 0:00:20]}  Bc2 {[%clk 0:00:51]} 42. Bf3 {[%clk 0:00:19]} 1/2-1/2


[Site "https://www.chess.com"]

[Event "Titled Tuesday Blitz August 09 Late 2022"]
[White "Naroditsky, Daniel"]
[Black "Yanchenko, Roman"]
[WhiteFideId "2026961"]
[BlackFideId "4137329"]
[WhiteElo "2628"]
[BlackElo "2514"]
[Result "1-0"]
[Round "09"]
[TimeControl "180+1"]
[Date "2022.08.09"]
[WhiteClock "0:00:05"]
[BlackClock "0:00:06"]

1. d4 {[%clk 0:03:00]}  d5 {[%clk 0:03:00]} 2. Nc3 {[%clk 0:02:59]}  Nf6 {[%clk 0:02:59]} 3. Bf4 {[%clk 0:02:59]}  c6 {[%clk 0:02:59]} 4. e3 {[%clk 0:02:59]}  Bf5 {[%clk 0:02:59]} 5. Nf3 {[%clk 0:02:58]}  e6 {[%clk 0:02:59]} 6. Ne5 {[%clk 0:02:59]}  h5 {[%clk 0:02:53]} 7. Bd3 {[%clk 0:02:51]}  Bxd3 {[%clk 0:02:52]} 8. cxd3 {[%clk 0:02:52]}  Nbd7 {[%clk 0:02:53]} 9. Qb3 {[%clk 0:02:47]}  Qb6 {[%clk 0:02:52]} 10. Qc2 {[%clk 0:02:46]}  Nxe5 {[%clk 0:02:40]} 11. Bxe5 {[%clk 0:02:47]}  Be7 {[%clk 0:02:39]} 12. h3 {[%clk 0:02:43]}  a6 {[%clk 0:02:37]} 13. O-O {[%clk 0:02:42]}  Rc8 {[%clk 0:02:34]} 14. Qe2 {[%clk 0:02:29]}  Qd8 {[%clk 0:02:31]} 15. a3 {[%clk 0:02:24]}  Bd6 {[%clk 0:02:28]} 16. Bxd6 {[%clk 0:02:10]}  Qxd6 {[%clk 0:02:28]} 17. b4 {[%clk 0:02:11]}  e5 {[%clk 0:02:15]} 18. dxe5 {[%clk 0:02:09]}  Qxe5 {[%clk 0:02:16]} 19. d4 {[%clk 0:02:10]}  Qf5 {[%clk 0:02:05]} 20. f3 {[%clk 0:02:00]}  O-O {[%clk 0:01:49]} 21. e4 {[%clk 0:02:01]}  Qf4 {[%clk 0:01:49]} 22. Qf2 {[%clk 0:01:49]}  dxe4 {[%clk 0:01:40]} 23. fxe4 {[%clk 0:01:50]}  Qxf2+ {[%clk 0:01:40]} 24. Rxf2 {[%clk 0:01:47]}  Rcd8 {[%clk 0:01:41]} 25. Rd1 {[%clk 0:01:37]}  Rfe8 {[%clk 0:01:37]} 26. e5 {[%clk 0:01:37]}  Nd7 {[%clk 0:01:37]} 27. Rdf1 {[%clk 0:01:27]}  f6 {[%clk 0:01:35]} 28. Ne4 {[%clk 0:01:28]}  fxe5 {[%clk 0:01:32]} 29. Nd6 {[%clk 0:01:28]}  Re7 {[%clk 0:01:15]} 30. Nxb7 {[%clk 0:01:22]}  Rb8 {[%clk 0:01:15]} 31. Na5 {[%clk 0:01:19]}  Rc8 {[%clk 0:00:42]} 32. Rc2 {[%clk 0:01:07]}  exd4 {[%clk 0:00:42]} 33. Nxc6 {[%clk 0:01:08]}  Kh7 {[%clk 0:00:41]} 34. Nxd4 {[%clk 0:01:04]}  Rxc2 {[%clk 0:00:41]} 35. Nxc2 {[%clk 0:01:05]}  Nf6 {[%clk 0:00:34]} 36. Nd4 {[%clk 0:00:55]}  Re4 {[%clk 0:00:30]} 37. Nb3 {[%clk 0:00:50]}  Rc4 {[%clk 0:00:21]} 38. Nd2 {[%clk 0:00:28]}  Rc2 {[%clk 0:00:21]} 39. Nf3 {[%clk 0:00:26]}  Kh6 {[%clk 0:00:19]} 40. Re1 {[%clk 0:00:20]}  Rc3 {[%clk 0:00:18]} 41. Ra1 {[%clk 0:00:20]}  Ne4 {[%clk 0:00:16]} 42. Nd4 {[%clk 0:00:15]}  h4 {[%clk 0:00:15]} 43. Ne6 {[%clk 0:00:12]}  Rc2 {[%clk 0:00:12]} 44. Re1 {[%clk 0:00:06]}  Ng3 {[%clk 0:00:11]} 45. Ra1 {[%clk 0:00:07]}  Rb2 {[%clk 0:00:11]} 46. Nc5 {[%clk 0:00:06]}  a5 {[%clk 0:00:11]} 47. bxa5 {[%clk 0:00:06]}  Rb5 {[%clk 0:00:11]} 48. Ne6 {[%clk 0:00:03]}  Rxa5 {[%clk 0:00:11]} 49. a4 {[%clk 0:00:04]}  g5 {[%clk 0:00:11]} 50. Nd4 {[%clk 0:00:04]}  Ra6 {[%clk 0:00:11]} 51. a5 {[%clk 0:00:04]}  Kh5 {[%clk 0:00:11]} 52. Nb3 {[%clk 0:00:04]}  g4 {[%clk 0:00:10]} 53. Nc5 {[%clk 0:00:05]}  Ra7 {[%clk 0:00:11]} 54. a6 {[%clk 0:00:05]}  Ne2+ {[%clk 0:00:11]} 55. Kf2 {[%clk 0:00:05]}  Nf4 {[%clk 0:00:11]} 56. hxg4+ {[%clk 0:00:03]}  Kxg4 {[%clk 0:00:12]} 57. Ra4 {[%clk 0:00:03]}  Kg5 {[%clk 0:00:11]} 58. Ra3 {[%clk 0:00:02]}  Nd5 {[%clk 0:00:11]} 59. Rd3 {[%clk 0:00:02]}  Nb4 {[%clk 0:00:11]} 60. Rd6 {[%clk 0:00:02]}  Rf7+ {[%clk 0:00:09]} 61. Kg1 {[%clk 0:00:02]}  Ra7 {[%clk 0:00:09]} 62. Rb6 {[%clk 0:00:02]}  Nd5 {[%clk 0:00:09]} 63. Rb7 {[%clk 0:00:03]}  Ra8 {[%clk 0:00:09]} 64. a7 {[%clk 0:00:04]}  Kf4 {[%clk 0:00:09]} 65. Nb3 {[%clk 0:00:02]}  Ke5 {[%clk 0:00:09]} 66. Na5 {[%clk 0:00:02]}  Kd6 {[%clk 0:00:09]} 67. Rh7 {[%clk 0:00:03]}  Kc5 {[%clk 0:00:09]} 68. Nb3+ {[%clk 0:00:03]}  Kb6 {[%clk 0:00:09]} 69. Rh5 {[%clk 0:00:03]}  Nc3 {[%clk 0:00:08]} 70. Rxh4 {[%clk 0:00:03]}  Rxa7 {[%clk 0:00:08]} 71. Rb4+ {[%clk 0:00:03]}  Kc6 {[%clk 0:00:08]} 72. Rc4+ {[%clk 0:00:04]}  Kd5 {[%clk 0:00:04]} 73. Rxc3 {[%clk 0:00:05]}  Ke4 {[%clk 0:00:04]} 74. Rf3 {[%clk 0:00:05]}  Rc7 {[%clk 0:00:04]} 75. Nd2+ {[%clk 0:00:04]}  Ke5 {[%clk 0:00:04]} 76. Kf2 {[%clk 0:00:04]}  Rc2 {[%clk 0:00:04]} 77. Ke3 {[%clk 0:00:05]}  Ra2 {[%clk 0:00:05]} 78. g4 {[%clk 0:00:03]}  Ra3+ {[%clk 0:00:05]} 79. Kf2 {[%clk 0:00:04]}  Ra4 {[%clk 0:00:06]} 80. Kg3 {[%clk 0:00:04]}  Ke6 {[%clk 0:00:06]} 81. Nf1 {[%clk 0:00:04]}  Ra1 {[%clk 0:00:06]} 82. Ne3 {[%clk 0:00:03]}  Ke7 {[%clk 0:00:07]} 83. g5 {[%clk 0:00:03]}  Ra5 {[%clk 0:00:06]} 84. Kg4 {[%clk 0:00:04]}  Ra4+ {[%clk 0:00:06]} 85. Kh5 {[%clk 0:00:04]}  Ra3 {[%clk 0:00:06]} 86. Nd5+ {[%clk 0:00:04]}  Kd6 {[%clk 0:00:06]} 87. Rxa3 {[%clk 0:00:05]} 1-0


[Site "https://www.chess.com"]

[Event "Titled Tuesday Blitz August 09 Late 2022"]
[White "Paravyan, David"]
[Black "Tanenbaum, Zachary"]
[WhiteFideId "4194985"]
[BlackFideId "2060850"]
[WhiteElo "2569"]
[BlackElo "2175"]
[Result "1-0"]
[Round "09"]
[TimeControl "180+1"]
[Date "2022.08.09"]
[WhiteClock "0:02:13"]
[BlackClock "0:00:29"]

1. e4 {[%clk 0:03:00]}  e5 {[%clk 0:03:00]} 2. Nf3 {[%clk 0:02:57]}  Nc6 {[%clk 0:03:00]} 3. Nc3 {[%clk 0:02:57]}  Nf6 {[%clk 0:03:00]} 4. d4 {[%clk 0:02:58]}  exd4 {[%clk 0:03:01]} 5. Nxd4 {[%clk 0:02:59]}  Bb4 {[%clk 0:03:01]} 6. Nxc6 {[%clk 0:02:59]}  bxc6 {[%clk 0:03:02]} 7. Bd3 {[%clk 0:03:00]}  d5 {[%clk 0:03:01]} 8. exd5 {[%clk 0:03:01]}  O-O {[%clk 0:03:01]} 9. O-O {[%clk 0:03:02]}  cxd5 {[%clk 0:03:01]} 10. Bg5 {[%clk 0:03:02]}  c6 {[%clk 0:03:02]} 11. Qf3 {[%clk 0:03:02]}  Bd6 {[%clk 0:02:59]} 12. Rae1 {[%clk 0:03:02]}  Rb8 {[%clk 0:02:59]} 13. Nd1 {[%clk 0:03:01]}  h6 {[%clk 0:02:34]} 14. Bxf6 {[%clk 0:03:01]}  Qxf6 {[%clk 0:02:34]} 15. Qxf6 {[%clk 0:03:01]}  gxf6 {[%clk 0:02:35]} 16. b3 {[%clk 0:03:02]}  Bd7 {[%clk 0:02:30]} 17. Ne3 {[%clk 0:03:01]}  Rfe8 {[%clk 0:02:28]} 18. Nf5 {[%clk 0:02:57]}  Bxf5 {[%clk 0:02:28]} 19. Bxf5 {[%clk 0:02:56]}  c5 {[%clk 0:02:28]} 20. Bd7 {[%clk 0:02:47]}  Re5 {[%clk 0:02:20]} 21. Bc6 {[%clk 0:02:45]}  Rd8 {[%clk 0:02:18]} 22. Rxe5 {[%clk 0:02:43]}  Bxe5 {[%clk 0:02:18]} 23. Rd1 {[%clk 0:02:44]}  d4 {[%clk 0:02:16]} 24. Bb5 {[%clk 0:02:43]}  Kf8 {[%clk 0:02:12]} 25. Rd3 {[%clk 0:02:42]}  Bc7 {[%clk 0:01:55]} 26. Rh3 {[%clk 0:02:40]}  Kg7 {[%clk 0:01:55]} 27. Rh5 {[%clk 0:02:39]}  Bb6 {[%clk 0:01:27]} 28. Bd3 {[%clk 0:02:33]}  Re8 {[%clk 0:01:25]} 29. Kf1 {[%clk 0:02:25]}  Re5 {[%clk 0:01:18]} 30. Rh4 {[%clk 0:02:25]}  Ba5 {[%clk 0:01:13]} 31. g3 {[%clk 0:02:25]}  Bd2 {[%clk 0:01:10]} 32. f4 {[%clk 0:02:25]}  Re3 {[%clk 0:01:06]} 33. Rh5 {[%clk 0:02:24]}  Bb4 {[%clk 0:01:06]} 34. Rd5 {[%clk 0:02:22]}  Re7 {[%clk 0:01:03]} 35. Rd8 {[%clk 0:02:20]}  Ba5 {[%clk 0:00:56]} 36. Rd5 {[%clk 0:02:18]}  Bb4 {[%clk 0:00:56]} 37. Kf2 {[%clk 0:02:19]}  Kf8 {[%clk 0:00:55]} 38. Kf3 {[%clk 0:02:17]}  Re3+ {[%clk 0:00:52]} 39. Kg4 {[%clk 0:02:17]}  Re6 {[%clk 0:00:44]} 40. Kh5 {[%clk 0:02:14]}  Kg7 {[%clk 0:00:44]} 41. Rd7 {[%clk 0:02:15]}  a5 {[%clk 0:00:40]} 42. Bc4 {[%clk 0:02:14]}  Re1 {[%clk 0:00:33]} 43. Rxf7+ {[%clk 0:02:14]}  Kh8 {[%clk 0:00:33]} 44. Kg6 {[%clk 0:02:15]}  Re8 {[%clk 0:00:29]} 45. Rh7# {[%clk 0:02:13]} 1-0


[Site "https://www.chess.com"]

[Event "Titled Tuesday Blitz August 09 Late 2022"]
[White "Pham, Khoi"]
[Black "Adewumi, Tanitoluwa"]
[WhiteFideId "1054988"]
[BlackFideId "30966396"]
[WhiteElo "2347"]
[BlackElo "2530"]
[Result "1-0"]
[Round "09"]
[TimeControl "180+1"]
[Date "2022.08.09"]
[WhiteClock "0:01:41"]
[BlackClock "0:00:15"]

1. e4 {[%clk 0:03:00]}  c5 {[%clk 0:02:59]} 2. Nf3 {[%clk 0:02:59]}  e6 {[%clk 0:02:58]} 3. d4 {[%clk 0:02:59]}  cxd4 {[%clk 0:02:57]} 4. Nxd4 {[%clk 0:02:59]}  Nc6 {[%clk 0:02:51]} 5. c4 {[%clk 0:02:49]}  Nf6 {[%clk 0:01:54]} 6. Nc3 {[%clk 0:02:47]}  Bb4 {[%clk 0:01:54]} 7. Nxc6 {[%clk 0:02:43]}  bxc6 {[%clk 0:01:51]} 8. Bd3 {[%clk 0:02:43]}  O-O {[%clk 0:01:24]} 9. e5 {[%clk 0:02:34]}  Qa5 {[%clk 0:01:12]} 10. exf6 {[%clk 0:02:29]}  Bxc3+ {[%clk 0:01:12]} 11. bxc3 {[%clk 0:02:28]}  Qxc3+ {[%clk 0:01:13]} 12. Qd2 {[%clk 0:02:28]}  Qxa1 {[%clk 0:01:13]} 13. fxg7 {[%clk 0:02:25]}  Qxg7 {[%clk 0:01:09]} 14. h4 {[%clk 0:02:22]}  d5 {[%clk 0:00:57]} 15. Rh3 {[%clk 0:02:18]}  Kh8 {[%clk 0:00:42]} 16. Rg3 {[%clk 0:02:15]}  Qf6 {[%clk 0:00:34]} 17. Rg5 {[%clk 0:01:50]}  Rg8 {[%clk 0:00:23]} 18. Bb2 {[%clk 0:01:45]}  d4 {[%clk 0:00:23]} 19. Bxd4 {[%clk 0:01:40]}  Qxd4 {[%clk 0:00:20]} 20. Rxg8+ {[%clk 0:01:39]}  Kxg8 {[%clk 0:00:17]} 21. Bxh7+ {[%clk 0:01:40]}  Kxh7 {[%clk 0:00:17]} 22. Qxd4 {[%clk 0:01:41]}  c5 {[%clk 0:00:15]} 23. Qe4+ {[%clk 0:01:41]} 1-0


[Site "https://www.chess.com"]